bitfinex/quotes_BTCUSD_20230114
["timestamp","ask_amount","ask_price","bid_price","bid_amount"]
[1673661150049,0.47802,20920.0,20914.0,0.21446]
[1673661150305,1.24309835,20922.0,20915.0,0.478113]
[1673661150550,0.1780557,20921.0,20915.0,0.478113]
[1673661150801,0.1780557,20921.0,20915.0,0.46262266]
[1673661151041,0.0002,20920.0,20916.0,0.321013]
[1673661151289,0.14862298,20918.0,20914.0,0.81853829]
[1673661151540,0.14862298,20918.0,20914.0,0.80841602]
[1673661151541,0.19072595,20917.0,20914.0,0.80841602]
[1673661151776,0.19072595,20917.0,20914.0,0.80341602]
[1673661152032,0.0002,20920.0,20912.0,0.20019]
[1673661152033,0.66792764,20916.0,20912.0,0.00019]
[1673661152289,0.012662,20915.0,20912.0,0.478381]
[1673661152546,0.012662,20915.0,20912.0,0.17519007]
[1673661152547,0.19072595,20915.0,20912.0,0.17519007]
[1673661152791,0.34116116,20915.0,20912.0,0.17519007]
[1673661153036,0.15043521,20915.0,20913.0,0.18390508]
[1673661154817,0.0002,20916.0,20914.0,0.321013]
[1673661155060,0.0002,20916.0,20915.0,0.679918]
[1673661155797,0.0002,20916.0,20915.0,1.158043]
[1673661156036,0.0002,20916.0,20915.0,2.398243]
[1673661156288,0.0002,20916.0,20915.0,2.4374603]
[1673661156787,0.0002,20916.0,20915.0,2.59438207]
[1673661157036,0.01319835,20922.0,20915.0,2.398243]
[1673661157293,0.20997,20922.0,20916.0,0.98316674]
[1673661157542,0.20997,20922.0,20917.0,1.67319482]
[1673661157788,0.20997,20922.0,20918.0,0.320947]
[1673661158071,0.01319835,20922.0,20919.0,0.201745]
[1673661158316,0.18473666,20921.0,20919.0,0.19586735]
[1673661158842,0.01319835,20922.0,20920.0,0.321013]
[1673661159081,0.01319835,20922.0,20921.0,0.201626]
[1673661159794,0.01319835,20922.0,20917.0,0.478061]
[1673661159795,0.05950835,20922.0,20917.0,0.478061]
[1673661160042,0.19072595,20921.0,20917.0,0.478061]
[1673661160290,0.19072595,20920.0,20917.0,0.478061]
[1673661160783,0.18154001,20919.0,20918.0,0.321013]
[1673661161268,0.01319835,20922.0,20918.0,0.321013]
[1673661161546,0.01319835,20922.0,20918.0,0.15525269]
[1673661161547,0.16363613,20921.0,20918.0,0.15525269]
[1673661161795,0.01319835,20922.0,20917.0,0.478057]
[1673661162055,0.01319835,20922.0,20918.0,1.16686669]
[1673661162298,0.15886565,20922.0,20919.0,0.201679]
[1673661162541,0.19108872,20919.0,20917.0,0.478065]
[1673661162784,0.19072595,20918.0,20915.0,1.518316]
[1673661163027,0.19072595,20917.0,20915.0,0.478116]
[1673661163282,0.20528,20920.0,20914.0,0.00019]
[1673661163283,1.64320424,20916.0,20914.0,0.00019]
[1673661163519,0.30572795,20915.0,20914.0,0.00019]
[1673661163758,0.115002,20915.0,20914.0,0.00019]
[1673661163998,0.593127,20915.0,20914.0,0.00019]
[1673661164725,0.593127,20915.0,20911.0,0.00628606]
[1673661164962,0.72488095,20915.0,20911.0,0.00628606]
[1673661165438,0.20338795,20914.0,20911.0,0.00628606]
[1673661165701,0.478171,20913.0,20911.0,0.00628606]
[1673661165954,0.115002,20912.0,20911.0,0.00628606]
[1673661166190,0.593196,20912.0,20911.0,0.00628606]
[1673661167406,0.04631,20912.0,20911.0,0.00628606]
[1673661167656,0.22035346,20912.0,20911.0,0.00628606]
[1673661167877,0.04631,20912.0,20911.0,0.00628606]
[1673661168133,0.24708527,20912.0,20911.0,0.00628606]
[1673661168386,0.23442327,20912.0,20911.0,0.00628606]
[1673661168617,0.04631,20912.0,20911.0,0.00628606]
[1673661168858,0.75324964,20912.0,20911.0,0.00628606]
[1673661169099,1.04071769,20912.0,20911.0,0.00628606]
[1673661169350,1.22868265,20912.0,20911.0,0.00628606]
[1673661169828,0.058972,20912.0,20911.0,0.00628606]
[1673661170085,0.22911084,20912.0,20911.0,0.00628606]
[1673661170318,0.0002,20914.0,20911.0,0.06231606]
[1673661170586,0.0002,20914.0,20912.0,0.321013]
[1673661170902,0.0002,20914.0,20913.0,1.15819]
[1673661171126,0.0002,20914.0,20913.0,0.201848]
[1673661171608,0.14964291,20914.0,20913.0,0.201848]
[1673661171839,0.14944291,20914.0,20912.0,0.15582982]
[1673661172308,0.20279,20917.0,20912.0,0.15582982]
[1673661172543,0.17814766,20915.0,20912.0,0.15582982]
[1673661173273,0.14889611,20914.0,20911.0,0.48449506]
[1673661173534,0.14889611,20914.0,20911.0,0.00628606]
[1673661173773,0.33962206,20914.0,20911.0,0.00628606]
[1673661174061,0.17617873,20913.0,20911.0,0.00628606]
[1673661174794,0.012662,20912.0,20911.0,0.0061869]
[1673661175266,0.068692,20912.0,20911.0,0.0061869]
[1673661175505,0.546886,20912.0,20911.0,0.0061869]
[1673661175758,0.546886,20912.0,20911.0,0.00351296]
[1673661176019,1.02408769,20912.0,20911.0,0.00351296]
[1673661176258,1.15921541,20912.0,20911.0,0.00351296]
[1673661176742,1.25921541,20912.0,20911.0,0.00351296]
[1673661177000,2.30669128,20912.0,20910.0,0.00668361]
[1673661177243,0.00194253,20910.0,20907.0,0.00668361]
[1673661177489,0.969186,20909.0,20907.0,0.00668361]
[1673661177737,0.00194253,20910.0,20908.0,0.09991187]
[1673661177991,0.012662,20909.0,20908.0,0.09991187]
[1673661178232,0.012662,20909.0,20907.0,0.00668361]
[1673661178974,0.48018353,20910.0,20907.0,0.00668361]
[1673661179210,0.96812869,20909.0,20907.0,0.00668361]
[1673661179452,0.95546669,20909.0,20907.0,0.00668361]
[1673661179685,0.012662,20908.0,20907.0,0.00668361]
[1673661179921,0.068692,20908.0,20907.0,0.00668361]
[1673661180402,0.546977,20908.0,20907.0,0.00668361]
[1673661180638,0.69751985,20908.0,20907.0,0.00668361]
[1673661180895,0.546977,20908.0,20907.0,0.00668361]
[1673661182179,1.02417869,20908.0,20907.0,0.00668361]
[1673661182436,1.03267869,20908.0,20907.0,0.00668361]
[1673661182682,0.2,20907.0,20906.0,0.00628606]
[1673661182930,1.66866769,20907.0,20906.0,0.00628606]
[1673661183173,1.68132969,20907.0,20906.0,0.00628606]
[1673661184142,1.48132969,20907.0,20906.0,0.00628606]
[1673661184384,0.969278,20907.0,20906.0,0.00628606]
[1673661184892,1.44647969,20907.0,20906.0,0.00628606]
[1673661185134,0.49097,20907.0,20906.0,0.00628606]
[1673661185855,0.012662,20907.0,20906.0,0.06231606]
[1673661186108,0.17146575,20908.0,20906.0,0.06231606]
[1673661186367,0.17146575,20908.0,20906.0,0.26128558]
[1673661186611,0.0002,20909.0,20906.0,0.20741499]
[1673661186865,0.14395137,20909.0,20906.0,0.20741499]
[1673661187175,0.00194253,20910.0,20907.0,0.521013]
[1673661187408,0.00194253,20910.0,20908.0,1.158557]
[1673661187645,0.00194253,20910.0,20909.0,0.32098]
[1673661188180,0.00194253,20910.0,20909.0,0.52800694]
[1673661188446,0.00194253,20910.0,20909.0,0.32800694]
[1673661189168,0.00194253,20910.0,20909.0,0.201969]
[1673661189425,0.16429451,20909.0,20906.0,0.12363747]
[1673661189682,0.39072595,20908.0,20906.0,0.00628606]
[1673661189927,0.19072595,20908.0,20906.0,0.00628606]
[1673661190158,0.19936174,20907.0,20906.0,0.00628606]
[1673661191874,0.17636868,20907.0,20906.0,0.00628606]
[1673661192113,0.99008295,20907.0,20906.0,0.00628606]
[1673661192353,1.27655869,20907.0,20906.0,0.00628606]
[1673661192598,1.47655869,20907.0,20906.0,0.00628606]
[1673661193637,1.48505869,20907.0,20906.0,0.00628606]
[1673661196112,1.58498677,20907.0,20906.0,0.00628606]
[1673661196627,1.37648677,20907.0,20906.0,0.00628606]
[1673661197632,1.57648677,20907.0,20906.0,0.00628606]
[1673661198133,1.76721272,20907.0,20906.0,0.00628606]
[1673661198387,1.76721272,20907.0,20905.0,0.00724472]
[1673661198388,0.10436145,20905.0,20904.0,0.00724472]
[1673661198660,2.05556314,20905.0,20904.0,0.00724472]
[1673661198908,2.02921314,20905.0,20904.0,0.00724472]
[1673661199418,0.49296345,20905.0,20904.0,0.00724472]
[1673661199679,0.01460945,20905.0,20904.0,0.00724472]
[1673661199933,0.00202145,20905.0,20904.0,0.00724472]
[1673661200170,0.17993084,20906.0,20904.0,0.00724472]
[1673661200415,0.17993084,20906.0,20904.0,0.20419284]
[1673661200659,0.19892378,20907.0,20905.0,0.19105495]
[1673661200913,0.0002,20907.0,20905.0,0.19105495]
[1673661201162,0.0002,20907.0,20906.0,0.202008]
[1673661201408,0.0002,20907.0,20906.0,0.680339]
[1673661201664,0.0002,20907.0,20906.0,0.880339]
[1673661202163,0.15354584,20909.0,20906.0,0.880339]
[1673661202414,0.15354584,20909.0,20906.0,0.678331]
[1673661202657,0.15354584,20909.0,20907.0,0.201994]
[1673661202904,0.15354584,20909.0,20906.0,0.678331]
[1673661203162,0.15354584,20909.0,20907.0,0.201993]
[1673661203409,0.00194253,20910.0,20906.0,0.678331]
[1673661203652,0.18860044,20910.0,20907.0,0.201993]
[1673661203896,0.18878044,20910.0,20907.0,0.16487717]
[1673661204141,0.00018,20910.0,20907.0,0.478307]
[1673661204407,0.00018,20910.0,20908.0,0.201982]
[1673661204649,0.00018,20910.0,20909.0,1.156524]
[1673661204898,0.17654773,20914.0,20909.0,2.01576947]
[1673661204899,0.01244792,20914.0,20909.0,2.01576947]
[1673661205145,0.01244792,20914.0,20910.0,0.5153962]
[1673661205398,0.01244792,20914.0,20912.0,0.2]
[1673661205899,0.01244792,20914.0,20913.0,0.20192]
[1673661205900,0.20976919,20914.0,20913.0,0.20192]
[1673661206143,0.20976919,20914.0,20911.0,0.478212]
[1673661206144,0.01244792,20914.0,20912.0,0.16514448]
[1673661206388,0.01244792,20914.0,20913.0,0.201919]
[1673661206632,0.01244792,20914.0,20913.0,0.39625895]
[1673661206878,0.01244792,20914.0,20913.0,0.68009]
[1673661207127,0.01244792,20914.0,20913.0,1.1954862]
[1673661207376,4.792e-05,20914.0,20913.0,1.7954862]
[1673661207614,0.01273026,20915.0,20914.0,0.2]
[1673661207873,0.01329268,20919.0,20915.0,0.2]
[1673661207874,0.17160219,20919.0,20915.0,0.2]
[1673661208116,0.01329268,20919.0,20916.0,1.158082]
[1673661208366,0.01329268,20919.0,20916.0,1.4715922]
[1673661208615,0.01329268,20919.0,20917.0,0.401869]
[1673661208858,0.01329268,20919.0,20918.0,0.478057]
[1673661209113,0.01329268,20919.0,20918.0,0.85516554]
[1673661209358,0.19900594,20919.0,20916.0,0.67514915]
[1673661209604,0.19900594,20919.0,20917.0,0.201867]
[1673661209605,0.01329268,20919.0,20917.0,0.201867]
[1673661209853,0.01329268,20919.0,20918.0,0.201858]
[1673661210125,0.01329268,20919.0,20918.0,0.35803472]
[1673661210617,0.01329268,20919.0,20918.0,0.83609172]
[1673661211879,0.01329268,20919.0,20918.0,1.03609172]
[1673661212127,0.01329268,20919.0,20918.0,1.06216122]
[1673661212382,0.01329268,20919.0,20918.0,1.57755742]
[1673661212867,0.01329268,20919.0,20918.0,0.201858]
[1673661213384,0.01329268,20919.0,20916.0,0.678087]
[1673661213385,0.15853763,20919.0,20915.0,1.6450432]
[1673661213642,0.34926358,20919.0,20917.0,0.1964685]
[1673661213913,0.15853763,20919.0,20918.0,0.201856]
[1673661214400,0.01329268,20919.0,20918.0,0.201856]
[1673661215396,1.15925432,20919.0,20914.0,0.00019]
[1673661215655,0.98897664,20918.0,20914.0,0.00019]
[1673661215974,1.15948195,20917.0,20914.0,0.00019]
[1673661216201,0.321049,20916.0,20914.0,0.00019]
[1673661216451,0.20331395,20915.0,20914.0,0.00019]
[1673661216944,0.012588,20915.0,20914.0,0.00019]
[1673661217195,0.012588,20915.0,20906.0,0.5153962]
[1673661217196,0.96791469,20915.0,20906.0,0.5153962]
[1673661217437,1.18897664,20914.0,20905.0,2.64368039]
[1673661217677,1.18897664,20914.0,20905.0,2.80082348]
[1673661217678,0.478206,20912.0,20905.0,2.80082348]
[1673661217919,0.19072595,20911.0,20905.0,2.80082348]
[1673661218170,0.19072595,20910.0,20907.0,0.19736258]
[1673661218426,0.478206,20912.0,20907.0,0.19736258]
[1673661218677,0.9467878,20912.0,20907.0,0.19736258]
[1673661218923,0.478186,20913.0,20907.0,0.19736258]
[1673661219162,0.18803241,20912.0,20908.0,0.18065252]
[1673661219414,0.17383933,20912.0,20907.0,0.17024427]
[1673661219657,0.8471758,20912.0,20907.0,0.17024427]
[1673661219909,0.66892895,20912.0,20906.0,0.16310233]
[1673661220154,0.19072595,20911.0,20905.0,0.84893566]
[1673661220399,0.02635,20909.0,20905.0,0.00019]
[1673661220652,0.02635,20906.0,20905.0,0.00019]
[1673661220889,0.478315,20907.0,20904.0,0.17500656]
[1673661221126,0.66904095,20907.0,20904.0,0.17500656]
[1673661221366,0.66904095,20907.0,20904.0,0.00724472]
[1673661221855,0.17938474,20908.0,20904.0,0.17506779]
[1673661222104,0.17938474,20908.0,20905.0,0.202019]
[1673661222336,0.17938474,20908.0,20904.0,0.65343779]
[1673661222607,0.1639995,20906.0,20905.0,0.2]
[1673661222848,0.1639995,20906.0,20904.0,0.17506779]
[1673661223337,0.16174954,20910.0,20905.0,0.2]
[1673661223604,0.16174954,20910.0,20906.0,0.680327]
[1673661223865,0.17560748,20909.0,20906.0,0.47832]
[1673661224108,1.2134,20912.0,20907.0,0.201993]
[1673661224344,0.19208544,20911.0,20908.0,0.401979]
[1673661224595,0.0002,20913.0,20908.0,0.2]
[1673661224841,0.19320903,20913.0,20909.0,0.35382185]
[1673661225071,0.16114176,20911.0,20908.0,0.2]
[1673661225305,0.16114176,20911.0,20907.0,0.62114075]
[1673661225547,0.35186771,20911.0,20907.0,0.62114075]
[1673661225800,0.35186771,20911.0,20908.0,0.201976]
[1673661226042,0.16114176,20911.0,20909.0,0.08682158]
[1673661226321,0.0002,20913.0,20910.0,0.201959]
[1673661226531,0.17076684,20913.0,20909.0,0.76507358]
[1673661227014,0.15869678,20912.0,20909.0,0.76507358]
[1673661227259,0.15869678,20912.0,20910.0,0.20070076]
[1673661227522,0.20659563,20912.0,20909.0,0.2]
[1673661227788,0.19072595,20912.0,20909.0,0.2]
[1673661228043,0.478193,20913.0,20908.0,0.1897326]
[1673661228279,0.66891895,20913.0,20908.0,0.1897326]
[1673661228522,0.16563403,20911.0,20908.0,0.18954223]
[1673661229032,0.16563403,20911.0,20907.0,0.678301]
[1673661229283,0.16563403,20911.0,20907.0,0.83798445]
[1673661229538,0.16563403,20911.0,20908.0,0.201976]
[1673661229776,0.16563403,20911.0,20908.0,0.1632233]
[1673661230756,0.16563403,20911.0,20907.0,0.478301]
[1673661231002,0.35635998,20911.0,20907.0,0.478301]
[1673661231273,0.35635998,20911.0,20905.0,0.00019]
[1673661231274,0.66792764,20910.0,20905.0,0.00019]
[1673661231541,1.94552464,20909.0,20905.0,0.00019]
[1673661231784,1.14727395,20909.0,20905.0,0.00019]
[1673661232022,0.19072595,20909.0,20905.0,0.15845713]
[1673661232279,1.1613,20910.0,20906.0,0.16656827]
[1673661232532,1.1613,20910.0,20905.0,0.47835]
[1673661232775,1.35202595,20910.0,20905.0,0.47835]
[1673661233027,0.14412321,20909.0,20905.0,0.66176428]
[1673661233290,0.19072595,20909.0,20904.0,0.48560072]
[1673661233550,0.37109735,20909.0,20904.0,0.64362539]
[1673661234026,0.37109735,20909.0,20906.0,0.10981479]
[1673661234266,0.37109735,20909.0,20904.0,0.48560072]
[1673661234267,0.1803714,20909.0,20907.0,0.18132282]
[1673661234754,0.1803714,20909.0,20905.0,0.478352]
[1673661235012,0.37109735,20909.0,20906.0,0.16215669]
[1673661235289,0.1803714,20909.0,20907.0,0.14418827]
[1673661235532,0.478203,20912.0,20908.0,0.201985]
[1673661235783,0.19949761,20910.0,20907.0,0.62248827]
[1673661236030,0.478174,20913.0,20904.0,2.06549823]
[1673661236031,0.0002,20913.0,20904.0,2.06549823]
[1673661236273,0.0002,20913.0,20908.0,0.478279]
[1673661236274,0.34555549,20912.0,20908.0,0.478279]
[1673661236521,0.15998562,20911.0,20908.0,0.478279]
[1673661236769,0.15998562,20911.0,20909.0,0.201968]
[1673661237024,0.14090034,20908.0,20906.0,0.62753546]
[1673661237255,0.33162629,20908.0,20906.0,0.478329]
[1673661237493,0.14090034,20908.0,20907.0,0.201988]
[1673661237732,0.13590034,20908.0,20907.0,0.401988]
[1673661237965,0.478192,20913.0,20907.0,0.401988]
[1673661238225,0.16285925,20911.0,20906.0,0.84858817]
[1673661238714,0.16285925,20911.0,20907.0,0.36915126]
[1673661238986,0.16285925,20911.0,20908.0,0.956562]
[1673661239244,0.478104,20916.0,20909.0,0.40197]
[1673661239486,0.478104,20916.0,20910.0,0.478229]
[1673661239487,0.17893377,20912.0,20910.0,0.478229]
[1673661239994,0.0002,20916.0,20910.0,0.478229]
[1673661240232,0.17509812,20913.0,20911.0,0.401942]
[1673661240507,0.0002,20916.0,20911.0,1.156411]
[1673661240739,0.0002,20916.0,20912.0,0.7173292]
[1673661240980,0.17476362,20915.0,20913.0,0.956332]
[1673661241215,0.17476362,20915.0,20914.0,0.201908]
[1673661241948,0.18357451,20917.0,20914.0,0.201908]
[1673661242193,0.18357451,20917.0,20913.0,0.678167]
[1673661242439,0.18357451,20917.0,20914.0,0.201904]
[1673661242689,0.01329268,20919.0,20914.0,0.478148]
[1673661242949,0.01329268,20919.0,20915.0,0.201894]
[1673661243198,0.01329268,20919.0,20916.0,1.634294]
[1673661243444,0.01329268,20919.0,20917.0,0.37382934]
[1673661243686,0.01329268,20919.0,20918.0,0.478057]
[1673661243936,0.01329268,20919.0,20918.0,0.679915]
[1673661244190,0.01329268,20919.0,20918.0,0.879915]
[1673661245451,0.01329268,20919.0,20918.0,1.3953112]
[1673661245707,0.15996921,20919.0,20918.0,0.201858]
[1673661245990,0.01329268,20919.0,20918.0,0.201858]
[1673661246232,0.01329268,20919.0,20918.0,0.83709148]
[1673661248493,0.01329268,20919.0,20918.0,0.679915]
[1673661249257,0.01329268,20919.0,20918.0,0.879915]
[1673661249751,0.01329268,20919.0,20918.0,1.04906688]
[1673661249994,0.01329268,20919.0,20918.0,1.03303257]
[1673661250242,0.01329268,20919.0,20918.0,1.07628298]
[1673661250503,0.01329268,20919.0,20918.0,0.879915]
[1673661251552,0.01329268,20919.0,20918.0,1.45348649]
[1673661252036,2.68e-06,20919.0,20918.0,1.93068818]
[1673661252281,0.01329268,20921.0,20918.0,1.93068818]
[1673661252521,0.01329268,20921.0,20919.0,0.90769682]
[1673661252776,0.01329268,20921.0,20920.0,2.06631738]
[1673661253023,0.01329268,20921.0,20920.0,1.835867]
[1673661253268,0.01329268,20921.0,20920.0,1.96799094]
[1673661253515,0.01329268,20921.0,20920.0,1.48997994]
[1673661253761,0.01329268,20921.0,20920.0,1.31049096]
[1673661254801,0.01329268,20921.0,20920.0,0.201834]
[1673661254802,0.20401863,20921.0,20920.0,0.201834]
[1673661255049,0.19486729,20921.0,20918.0,0.64558619]
[1673661255313,0.38559324,20921.0,20918.0,0.64558619]
[1673661255567,0.38559324,20921.0,20918.0,0.16752919]
[1673661256039,0.19486729,20921.0,20917.0,0.478075]
[1673661256294,0.17081782,20920.0,20917.0,0.63073584]
[1673661256524,0.36154377,20920.0,20917.0,0.63073584]
[1673661256764,0.17081782,20920.0,20918.0,0.201852]
[1673661257023,0.01029268,20921.0,20918.0,0.201852]
[1673661257024,0.01029268,20921.0,20918.0,0.17883514]
[1673661257282,0.01029268,20921.0,20919.0,0.201845]
[1673661257527,0.01029268,20921.0,20920.0,0.201833]
[1673661259261,0.18741831,20921.0,20919.0,0.478025]
[1673661259747,0.18741831,20921.0,20920.0,0.201831]
[1673661260232,0.18741831,20921.0,20917.0,0.63912318]
[1673661260233,0.20101863,20921.0,20917.0,0.63912318]
[1673661260498,0.19072595,20920.0,20917.0,0.16104818]
[1673661260998,0.01029268,20921.0,20917.0,0.15604818]
[1673661261251,0.20337518,20921.0,20917.0,0.15604818]
[1673661261498,0.01029268,20921.0,20918.0,0.18369553]
[1673661261765,0.01029268,20921.0,20919.0,0.679879]
[1673661262017,0.01029268,20921.0,20919.0,0.478034]
[1673661262280,0.20866703,20921.0,20920.0,0.201833]
[1673661262535,0.01029268,20921.0,20919.0,0.478034]
[1673661262782,0.17851615,20920.0,20919.0,0.478094]
[1673661263022,0.17851615,20920.0,20919.0,0.679936]
[1673661263530,0.15996375,20921.0,20919.0,0.679936]
[1673661263770,0.15996375,20921.0,20919.0,0.478094]
[1673661264022,0.15996375,20921.0,20920.0,0.201833]
[1673661264513,0.01029268,20921.0,20920.0,0.83830673]
[1673661264985,0.01029268,20921.0,20920.0,0.679844]
[1673661265465,0.01029268,20921.0,20920.0,1.11127351]
[1673661265704,0.01029268,20921.0,20920.0,0.87868869]
[1673661265941,0.01029268,20921.0,20920.0,0.879844]
[1673661269150,0.01029268,20921.0,20920.0,0.86005375]
[1673661269905,0.01029268,20921.0,20920.0,0.201833]
[1673661269906,0.3224872,20921.0,20920.0,0.201833]
[1673661270134,0.80887803,20921.0,20916.0,0.14924418]
[1673661270375,0.20331395,20920.0,20916.0,0.14924418]
[1673661270618,0.19072595,20919.0,20916.0,0.14924418]
[1673661271632,0.21707595,20919.0,20913.0,0.15909379]
[1673661271907,0.19072595,20918.0,20913.0,0.15928379]
[1673661272143,0.19072595,20917.0,20913.0,0.00703087]
[1673661272382,0.35201321,20917.0,20913.0,0.00703087]
[1673661272624,0.19072595,20917.0,20913.0,0.00703087]
[1673661272870,0.37003641,20917.0,20913.0,0.00703087]
[1673661273383,0.37003641,20917.0,20913.0,0.48520087]
[1673661273626,0.19072595,20917.0,20913.0,0.00703087]
[1673661273869,0.19072595,20917.0,20913.0,0.00684087]
[1673661274115,0.321049,20916.0,20913.0,0.00684087]
[1673661274378,0.012588,20915.0,20913.0,0.00684087]
[1673661274623,0.799197,20914.0,20913.0,0.00684087]
[1673661274876,0.825547,20914.0,20913.0,0.00684087]
[1673661275600,0.925547,20914.0,20913.0,0.00684087]
[1673661275846,0.48569429,20914.0,20913.0,0.00684087]
[1673661277384,0.16464529,20914.0,20913.0,0.00684087]
[1673661278410,1.0671,20917.0,20913.0,0.00684087]
[1673661278659,0.17603344,20916.0,20913.0,0.15957111]
[1673661279174,0.15212484,20913.0,20910.0,0.65277588]
[1673661279490,0.34285079,20913.0,20910.0,0.41047896]
[1673661279645,0.34285079,20913.0,20910.0,0.41066896]
[1673661279890,0.19658695,20914.0,20911.0,0.042605]
[1673661280137,0.19658695,20914.0,20912.0,0.201934]
[1673661280401,0.19788321,20915.0,20912.0,0.478182]
[1673661280654,0.19788321,20915.0,20912.0,0.678182]
[1673661280905,0.19788321,20915.0,20913.0,0.201919]
[1673661281137,0.19788321,20915.0,20913.0,0.478169]
[1673661281389,0.19788321,20915.0,20912.0,0.62006127]
[1673661281619,0.19788321,20915.0,20912.0,0.478182]
[1673661282104,0.16175393,20914.0,20912.0,0.478182]
[1673661283074,0.10006,20917.0,20909.0,0.83293851]
[1673661283319,0.956255,20915.0,20909.0,0.6366839]
[1673661283565,0.19072595,20914.0,20909.0,0.77856317]
[1673661283811,0.19072595,20913.0,20909.0,0.478241]
[1673661284067,0.19072595,20913.0,20908.0,0.62787111]
[1673661284317,0.956274,20915.0,20908.0,1.12952945]
[1673661284318,0.19072595,20912.0,20908.0,1.12952945]
[1673661284570,0.19072595,20912.0,20909.0,0.15888895]
[1673661284822,0.956274,20915.0,20909.0,0.15888895]
[1673661285056,1.35340098,20915.0,20909.0,0.63714395]
[1673661285299,0.00014,20914.0,20909.0,0.63714395]
[1673661285561,0.19398041,20913.0,20909.0,0.63714395]
[1673661285840,0.38470636,20913.0,20909.0,0.63714395]
[1673661286073,0.38470636,20913.0,20909.0,0.15888895]
[1673661286307,0.19398041,20913.0,20909.0,0.15888895]
[1673661287522,0.06721294,20912.0,20909.0,0.15888895]
[1673661288032,0.19072595,20911.0,20908.0,0.00752484]
[1673661288281,0.51177495,20910.0,20905.0,0.41321949]
[1673661288563,0.40331395,20909.0,20904.0,0.63134871]
[1673661288808,0.51177495,20908.0,20904.0,0.5993306]
[1673661289061,0.19072595,20907.0,20903.0,0.478391]
[1673661289324,0.19072595,20906.0,20902.0,1.09535335]
[1673661289580,0.19072595,20905.0,20902.0,0.66939188]
[1673661290312,0.725976,20908.0,20902.0,0.58900847]
[1673661290569,0.91670195,20908.0,20903.0,0.1200497]
[1673661290811,0.91670195,20908.0,20902.0,0.478401]
[1673661290812,0.725976,20908.0,20902.0,0.45251796]
[1673661291056,0.19072595,20907.0,20901.0,0.48595763]
[1673661291302,0.51177495,20906.0,20901.0,0.59284938]
[1673661291550,0.19072595,20906.0,20901.0,0.59135358]
[1673661291794,0.37834233,20906.0,20901.0,0.59135358]
[1673661292055,0.19072595,20906.0,20901.0,0.59135358]
[1673661292534,0.19072595,20906.0,20902.0,0.07438727]
[1673661292773,0.0002,20905.0,20901.0,0.39065667]
[1673661293021,0.19092595,20905.0,20901.0,0.35173513]
[1673661293282,0.0002,20905.0,20901.0,0.35173513]
[1673661293538,0.0002,20905.0,20902.0,0.402054]
[1673661293787,0.0002,20905.0,20903.0,1.4352]
[1673661294028,0.0002,20905.0,20904.0,0.201944]
[1673661294279,0.0002,20905.0,20904.0,0.680321]
[1673661294523,0.20024673,20910.0,20904.0,0.880321]
[1673661294765,0.724979,20915.0,20904.0,0.678377]
[1673661295008,0.18316097,20911.0,20905.0,0.201926]
[1673661295262,0.37388692,20911.0,20908.0,0.478285]
[1673661295505,0.18316097,20911.0,20908.0,0.478285]
[1673661295761,0.16597567,20910.0,20908.0,0.478285]
[1673661296011,0.19503797,20908.0,20906.0,0.478316]
[1673661296254,0.19851561,20907.0,20905.0,0.30861243]
[1673661296505,0.38924156,20907.0,20905.0,0.30861243]
[1673661296751,0.19851561,20907.0,20905.0,0.30861243]
[1673661297006,0.19851561,20907.0,20904.0,0.478363]
[1673661297007,0.19851561,20907.0,20904.0,0.478375]
[1673661297250,0.38924156,20907.0,20904.0,0.478375]
[1673661297501,0.19851561,20907.0,20904.0,0.478375]
[1673661298502,0.19851561,20907.0,20905.0,0.20192]
[1673661298747,0.19851561,20907.0,20904.0,0.478375]
[1673661298997,0.38924156,20907.0,20903.0,0.4784]
[1673661299751,0.19851561,20907.0,20903.0,0.4784]
[1673661300252,0.19871561,20907.0,20904.0,0.201938]
[1673661300500,0.0002,20907.0,20905.0,0.680285]
[1673661300786,0.0002,20907.0,20906.0,0.201918]
[1673661301040,0.0002,20907.0,20905.0,0.478354]
[1673661301289,0.0002,20907.0,20904.0,0.478359]
[1673661301525,0.1841091,20906.0,20904.0,0.478359]
[1673661301780,0.1841091,20906.0,20904.0,0.477452]
[1673661302290,1.207591,20910.0,20904.0,0.477452]
[1673661302291,0.72935,20910.0,20904.0,0.477452]
[1673661302532,1.75453,20912.0,20904.0,0.477452]
[1673661302533,0.19840571,20908.0,20904.0,0.477452]
[1673661302799,0.14934708,20910.0,20904.0,0.477452]
[1673661303042,1.601973,20913.0,20905.0,0.201927]
[1673661303295,0.14439775,20912.0,20907.0,0.956598]
[1673661303547,0.14439775,20912.0,20908.0,0.401891]
[1673661303789,0.14439775,20912.0,20909.0,0.956519]
[1673661304045,0.14459775,20912.0,20910.0,0.201868]
[1673661304296,0.14459775,20912.0,20910.0,0.478232]
[1673661304297,0.0002,20912.0,20910.0,0.478232]
[1673661304543,0.0002,20912.0,20911.0,0.401856]
[1673661304796,0.0002,20912.0,20911.0,1.35829]
[1673661305284,0.0002,20912.0,20911.0,1.83449169]
[1673661305533,0.0124203,20919.0,20912.0,0.2]
[1673661305779,0.0124203,20919.0,20914.0,1.434438]
[1673661305780,0.15615452,20919.0,20914.0,1.434438]
[1673661306040,0.15615452,20919.0,20915.0,0.201804]
[1673661306306,0.15518375,20918.0,20916.0,0.478098]
[1673661306547,0.0124203,20919.0,20917.0,0.201781]
[1673661306798,0.0124203,20919.0,20918.0,0.201768]
[1673661307052,0.16528201,20919.0,20916.0,0.47787273]
[1673661307293,0.0124203,20919.0,20917.0,0.2]
[1673661307537,0.0124203,20919.0,20918.0,0.201768]
[1673661309280,0.0124203,20919.0,20918.0,0.679825]
[1673661310315,0.0124203,20919.0,20918.0,0.879825]
[1673661311796,0.0124203,20919.0,20918.0,1.82206859]
[1673661312077,0.01029268,20921.0,20918.0,1.82206859]
[1673661312078,0.01029268,20921.0,20918.0,2.50402779]
[1673661312322,0.01029268,20921.0,20920.0,0.35605488]
[1673661312567,0.01029268,20921.0,20920.0,2.72044254]
[1673661312821,0.01029268,20921.0,20920.0,2.57802059]
[1673661313310,0.01029268,20921.0,20920.0,1.94118169]
[1673661313555,0.01029268,20921.0,20920.0,1.635777]
[1673661313811,0.01029268,20921.0,20920.0,1.634777]
[1673661314306,0.01029268,20921.0,20920.0,2.77702059]
[1673661314832,0.01029268,20921.0,20920.0,2.96294702]
[1673661315080,0.01029268,20921.0,20920.0,2.82052507]
[1673661315366,0.01029268,20921.0,20920.0,2.31197869]
[1673661315627,0.01029268,20921.0,20920.0,2.77702059]
[1673661316861,0.01029268,20921.0,20920.0,1.93045773]